Cogmind - Beta 13 X2 @@@ ROGUE MODE // 2024.02.12 @ 17:30:58 Player: Minty Result: Destroyed by P-80 Master with Gamma Rifle Performance ------------- Evolutions (7) 3500 Regions Visited (15) 3000 Robots Destroyed (129) 645 Value Destroyed (4968) 4968 Prototype IDs (43) 860 Alien Tech Used (1) 200 Bonus (1184) 1184 TOTAL SCORE: 14357 Bonus ------- High Alert Combat Kills 188 Follower Combat Kills 309 Met Warlord at Base 500 MAIN.C Attacked Warlord 500 Friendly Fire -313 Cogmind --------- Core Integrity 0/1300 Matter 279/300 Energy 266/350 System Corruption 20% Temperature Cool (0) Movement Core (500) Ox9 Location -3/Research Parts ------- > --- POWER (1) -------- Enhanced Fission Core > --- PROPULSION (5) --- (None) > --- UTILITY (8) ------ Enhanced Optical Array Advanced Targeting Computer Advanced Target Analyzer Advanced Target Analyzer Hacking Suite Improved System Shield Improved System Shield > --- WEAPON (7) ------- Gamma Rifle RU-N14's Throwing Claymores v3 > --- INVENTORY (5) ---- Light Antimatter Reactor RU-N14's Throwing Claymores v3 (7) RU-N14's Throwing Claymores v3 (6) RU-N14's Throwing Claymores v3 (8) Peak State ------------ > --- POWER ------------ Micro Fission Core > --- PROPULSION ------- Backup Propulsion III Backup Propulsion III Backup Propulsion III Improved Gyrokinetic Inverter > --- UTILITY ---------- Advanced Targeting Computer Advanced Melee Analysis Suite Improved Target Analyzer Advanced Target Analyzer Makeshift Ablative Armor Hacking Suite Improved System Shield Improved System Shield > --- WEAPON ----------- Backup Laser III Vortex Shotgun Vortex Shotgun Dirty Datajack RU-N14's Throwing Claymores v3 > --- INVENTORY -------- Light Antimatter Reactor RU-N14's Throwing Claymores v3 RU-N14's Throwing Claymores v3 RU-N14's Throwing Claymores v3 RU-N14's Throwing Claymores v3 [Rating: 101] Favorites ----------- Power Micro Nuclear Core Engine Ion Engine Power Core Micro Nuclear Core Reactor Light Antimatter Reactor Propulsion Aluminum Leg Treads Light Treads Leg Aluminum Leg Wheel Wheel Hover Unit Backup Propulsion III Flight Unit Improved Flight Unit Utility Improved System Shield Device Improved Sensor Array Storage Small Storage Unit Processor Advanced Targeting Computer Hackware Improved System Shield Protection Medium Armor Plating Weapon Improved Medium Laser Energy Gun Improved Medium Laser Energy Cannon Advanced Beam Cannon Ballistic Gun Heavy Assault Rifle Ballistic Cannon Compact Mass Driver Launcher Advanced Concussive RPG Special Weapon RU-N14's Throwing Claymores v3 Impact Weapon Flail Slashing Weapon Ionic Axe Special Melee Weapon Advanced Datajack Build | -11 -10 -9 -8 -8 -7 -7 -7 -6 -5 -4 -4 -4 -4 -3 -3 ------- Run | Yrd Mat Mat Mat Sto Fac Low Low Fac Fac Fac Upp Upp War Pro Res Slots Evolved 14 | . . 2 2 . 2 . . 2 2 2 . . . . 2 Power . | . . . . . . . . . . . . . . . . Propulsion 3 | . . . . . 1 . . . 1 . . . . . 1 Utility 6 | . . 1 1 . 1 . . 1 1 1 . . . . . Weapon 5 | . . 1 1 . . . . 1 . 1 . . . . 1 Parts Attached 241 | . 3 22 22 22 9 9 . 7 41 28 2 2 24 12 38 Power 28 | . 1 5 2 1 . 1 . 1 5 3 . . 3 1 5 Engine 9 | . 1 5 . 1 . . . . 2 . . . . . . Core 14 | . . . 2 . . 1 . 1 3 2 . . 2 1 2 Reactor 5 | . . . . . . . . . . 1 . . 1 . 3 Propulsion 35 | . . 2 4 5 3 2 . 1 7 5 . . 2 . 4 Treads 1 | . . . . 1 . . . . . . . . . . . Leg 14 | . . 2 4 . 3 2 . . 1 . . . . . 2 Wheel 1 | . . . . . . . . . . . . . . . 1 Hover 13 | . . . . . . . . 1 6 4 . . 2 . . Flight 6 | . . . . 4 . . . . . 1 . . . . 1 Utility 64 | . 1 3 5 7 5 3 . 4 13 11 1 2 3 . 6 Device 28 | . . . 2 3 4 2 . 2 6 4 1 1 . . 3 Storage . | . . . . . . . . . . . . . . . . Processor 18 | . 1 2 1 2 . 1 . 1 2 6 . . . . 2 Hackware 8 | . . . . . . . . 1 3 1 . 1 2 . . Protection 10 | . . 1 2 2 1 . . . 2 . . . 1 . 1 Artifact . | . . . . . . . . . . . . . . . . Weapon 114 | . 1 12 11 9 1 3 . 1 16 9 1 . 16 11 23 Energy Gun 52 | . 1 5 8 3 . 2 . 1 8 4 . . 6 6 8 Energy Cannon 1 | . . 1 . . . . . . . . . . . . . Ballistic Gun 20 | . . 5 2 2 . 1 . . 2 2 . . . 1 5 Ballistic Cannon 1 | . . . . . . . . . . . . . . . 1 Launcher 10 | . . . 1 4 1 . . . 2 1 1 . . . . Special Weapon 19 | . . . . . . . . . . . . . 7 3 9 Impact Weapon 2 | . . 1 . . . . . . 1 . . . . . . Slashing Weapon 7 | . . . . . . . . . 3 1 . . 2 1 . Piercing Weapon . | . . . . . . . . . . . . . . . . Special Melee Weapon 2 | . . . . . . . . . . 1 . . 1 . . Unidentified Prototypes 18 | . . 4 1 1 . . . . 4 1 . . 2 1 4 Corrupted Parts 2 | . . . . 1 . . . 1 . . . . . . . System Corruption 4 | . . . . 3 . . . 1 . . . . . . . Parts Lost 78 | . . . 1 9 12 . . . 16 9 4 3 . 9 15 Power 6 | . . . 1 1 1 . . . 2 . . . . . 1 Propulsion 23 | . . . . 3 3 . . . 4 4 1 1 . 3 4 Utility 20 | . . . . 2 3 . . . 6 3 1 1 . 2 2 Weapon 29 | . . . . 3 5 . . . 4 2 2 1 . 4 8 Highest Loss Streak 13 | . . . 1 9 12 . . . 13 5 4 2 . 2 3 To Critical Strikes . | . . . . . . . . . . . . . . . . Average Slot Usage (%) 74 | . 93 98 99 66 83 57 84 73 69 70 65 42 82 69 50 Engine 2 | . 14 11 2 2 5 . . . . . . . 1 . . Core 2 | . . . 6 2 . 2 7 6 2 4 5 3 1 4 2 Leg 7 | . 28 22 17 . 8 8 15 1 . . . . . . 2 Hover 5 | . . . . . . . . 5 12 10 11 6 17 15 1 Device 5 | . . . 6 13 13 15 15 19 11 2 . . 1 . 1 Storage 2 | . 14 11 9 . . . . . . . . . . . . Processor 17 | . 9 21 11 15 15 22 23 19 11 24 27 21 21 16 15 Hackware 6 | . . . . . . . . . 10 9 6 5 18 15 14 Protection 1 | . . . 8 2 5 . . . . . . . . 2 . Energy Gun 9 | . 12 7 22 8 12 5 15 13 12 6 2 . 7 9 6 Ballistic Gun 6 | . 14 20 12 4 12 2 7 6 . 1 5 2 . . 2 Naked Turns . | . . . . . . . . . . . . . . . . Heaviest Build 39 | 11 13 21 30 23 23 18 18 24 29 23 28 13 39 34 36 Greatest Support 43 | 20 20 23 25 25 38 40 20 20 43 30 30 19 36 36 40 Greatest Overweight (x) 4 | . . 1 1 4 1 1 . 1 1 1 . . 1 1 4 Average Overweight (x) . | . . . . . . . . . . . . . . . . Largest Inventory Capacity 8 | . 8 8 8 8 5 5 5 5 5 5 5 5 5 5 5 Average Capacity 5 | . 8 8 8 5 5 5 5 5 5 5 5 5 5 5 5 Most Carried 8 | . 8 8 8 8 5 4 5 5 5 5 5 5 5 5 5 Average Carried 5 | . 7 7 7 4 4 3 4 4 4 4 4 5 4 4 4 Final Capacity 8 | 8 8 8 8 5 5 5 5 5 5 5 5 5 5 5 5 Final Carried 8 | 6 7 8 7 5 4 4 5 5 4 5 5 5 5 5 4 Class Distribution -------------------- 21% | Hacker-Mutant 16% | Mutant 16% | Hacker-Gunner 8% | Scout 8% | Tank 7% | Skirmisher 6% | Scavenger-Skirmisher 4% | Hacker-Scout 3% | Derelict-Skirmisher Dominant Class ---------------- Mutant | -10/Materials Skirmisher | -9/Materials Tank | -8/Materials Scout | -8/Storage Scavenger-Skirmisher | -7/Factory Scout | -7/Lower Caves Derelict-Skirmisher | -7/Lower Caves Scout | -6/Factory Hacker-Scout | -5/Factory Hacker-Mutant | -4/Factory Mutant | -4/Upper Caves Mutant | -4/Upper Caves Hacker-Gunner | -4/Warlord Hacker-Mutant | -3/Proximity Caves Hacker-Mutant | -3/Research Resources | -11 -10 -9 -8 -8 -7 -7 -7 -6 -5 -4 -4 -4 -4 -3 -3 ----------- Run | Yrd Mat Mat Mat Sto Fac Low Low Fac Fac Fac Upp Upp War Pro Res Matter Collected 3375 | 200 . 545 352 152 125 296 37 15 399 269 20 49 . 290 626 Remotely . | . . . . . . . . . . . . . . . . Salvage Created 4639 | . 156 807 930 362 173 34 61 87 540 137 . 64 . 357 931 Parts 247 | . 8 58 46 20 9 2 1 7 26 10 . 3 . 8 49 Haulers Intercepted 6 | . 1 2 1 . . . . 1 1 . . . . . . Recyclers Shooed 4 | . . . . . . . . . 2 . . . . . 2 Parts Field Recycled . | . . . . . . . . . . . . . . . . Retrieved Matter . | . . . . . . . . . . . . . . . . Parts Self-Destructed 20 | . . . . . . 1 1 . . . 4 3 . 11 . Prevented . | . . . . . . . . . . . . . . . . Kills | -11 -10 -9 -8 -8 -7 -7 -7 -6 -5 -4 -4 -4 -4 -3 -3 ------- Run | Yrd Mat Mat Mat Sto Fac Low Low Fac Fac Fac Upp Upp War Pro Res Combat Hostiles Destroyed 86 | . 2 15 19 5 4 1 3 . 6 2 . 1 . 14 14 Melee 5 | . . . . . . . . . 5 . . . . . . Guns 54 | . 2 14 16 . 4 1 3 . . 2 . 1 . 5 6 Cannons 4 | . . . . . . . . . . . . . . 3 1 AOE 22 | . . 1 3 4 . . . . 1 . . . . 6 7 Classes Destroyed 15 | . 2 6 1 3 . 1 . . . 1 . . . 1 . Worker 16 | . . 5 1 1 1 . . . 1 . . . . . 7 Builder 2 | . . . . 1 . . . . . . . . . . 1 Tunneler 2 | . . 1 1 . . . . . . . . . . . . Hauler 6 | . 1 2 1 . . . . 1 1 . . . . . . Recycler 4 | . . . . 2 . . . . . . . . . . 2 Operator 5 | . . 1 . . . . . 1 1 1 . . . . 1 Drone 1 | . . . . . . . . . . 1 . . . . . Watcher 8 | . . 2 1 1 . . . . 1 . . . . . 3 Swarmer 19 | . . 4 4 . 2 . 3 . . . . . . 6 . Grunt 35 | . 2 8 11 1 2 . . . 1 . . 1 . 4 5 Brawler 1 | . . . 1 . . . . . . . . . . . . Sentry 12 | . . 3 3 3 . . . . 2 . . . . 1 . Hunter 1 | . . . . 1 . . . . . . . . . . . Programmer 17 | . . . . . . 1 . . 3 2 . . . 2 9 Behemoth 1 | . . . . . . . . . . . . . . 1 . Best Kill Streak 9 | . 1 4 5 7 2 1 3 1 6 2 . 1 . 4 9 Combat Bots Only 5 | . 1 4 5 2 2 1 3 . 5 2 . 1 . 4 4 Max Kills in Single Turn 4 | . 1 1 2 2 2 1 1 1 1 1 . 1 . 3 4 Gunslinging . | . . . . . . . . . . . . . . . . Exploded 2 | . . 1 2 2 . . . . 1 . . . . 2 2 Melee 1 | . . . . . . . . . 1 . . . . . . Uniques/NPCs Destroyed . | . . . . . . . . . . . . . . . . Combat | -11 -10 -9 -8 -8 -7 -7 -7 -6 -5 -4 -4 -4 -4 -3 -3 -------- Run | Yrd Mat Mat Mat Sto Fac Low Low Fac Fac Fac Upp Upp War Pro Res Hostile Shots Fired 837 | . 12 61 57 102 143 6 6 2 118 28 20 37 . 68 177 Missed 266 | . 4 19 24 44 42 2 1 2 29 5 10 17 . 25 42 Damage Taken 11500 | . 127 480 563 953 1365 60 78 . 2181 915 237 488 . 1091 2962 Core 4360 | . . 81 67 436 631 . . . 922 275 71 288 . 267 1322 Absorbed by Shields . | . . . . . . . . . . . . . . . . Redirected to Shielding 129 | . . . . 5 21 . . . . . . . . . 103 Regen/Repaired (Parts) 201 | . 34 117 . . 20 . . . 22 . . . 8 . . Core Remaining (%) 53 | 100 100 79 . 8 . . 9 100 7 . . . . 21 . Volleys Fired 327 | . 18 57 38 20 24 4 3 5 19 14 7 9 . 38 71 Largest 4 | . 2 3 4 1 4 1 3 3 4 2 3 1 . 3 4 Hottest 260 | . 60 102 206 65 172 63 136 136 251 125 155 35 . 160 260 Shots Fired 706 | . 36 149 140 19 88 4 8 15 42 17 14 9 . 63 102 Gun 670 | . 36 149 137 8 88 4 8 15 39 17 13 9 . 55 92 Cannon . | . . . . . . . . . . . . . . . . Launcher 18 | . . . 3 11 . . . . 3 . 1 . . . . Special 18 | . . . . . . . . . . . . . . 8 10 Kinetic 308 | . 18 114 57 . 41 . 3 5 . 6 7 9 . . 48 Thermal 221 | . . 9 80 8 47 4 3 5 14 . . . . 32 19 Explosive 30 | . . . . 8 . . . . 3 . 1 . . 8 10 Electromagnetic 127 | . 18 26 3 3 . . 2 5 25 11 6 . . 3 25 Entropic 20 | . . . . . . . . . . . . . . 20 . Robot Hit Streak 14 | . 4 10 13 10 6 4 5 8 6 4 3 2 . 11 14 Robot Miss Streak 11 | . 4 4 5 1 11 . 4 5 6 2 3 2 . 3 4 Penetration Max 1 | . . . . . 1 . . . . . . . . . 1 Secondary Targets 11 | . . 1 5 . 1 . 2 . . . . . . 2 . Max Gunslinging Chain 1 | . . 1 1 . 1 . 1 . . . . . . 1 . Shots Hit Robots 438 | . 17 87 77 15 35 4 7 13 34 14 7 5 . 50 73 Core Hits 259 | . 8 38 41 26 12 2 7 11 16 7 3 3 . 36 49 Critical Kills 4 | . . . 1 . . . . . . . . 1 . . 2 Critical Parts Destroyed 12 | . . 1 1 . 1 . . . . . 2 . . 1 6 Critical Strikes 41 | . . 1 7 . 4 1 1 . 4 2 3 1 . 2 15 Burn 12 | . . . 5 . 3 1 1 . 1 . . . . . 1 Destroy 14 | . . . 2 . 1 . . . . . 2 1 . . 8 Corrupt 4 | . . . . . . . . . . . 1 . . . 3 Smash 1 | . . 1 . . . . . . . . . . . . . Sever 9 | . . . . . . . . . 3 2 . . . 1 3 Detonate 1 | . . . . . . . . . . . . . . 1 . Melee Attacks 35 | . . 5 . . . . . . 24 5 . . . 1 . Impact 5 | . . 5 . . . . . . . . . . . . . Slashing 30 | . . . . . . . . . 24 5 . . . 1 . Piercing . | . . . . . . . . . . . . . . . . Sneak Attacks 3 | . . 2 . . . . . . 1 . . . . . . Combat Hostiles . | . . . . . . . . . . . . . . . . Follow-up Attacks . | . . . . . . . . . . . . . . . . Damage Inflicted 15917 | . 189 1447 1648 1211 660 85 116 210 1381 536 184 135 . 3170 4945 Guns 7864 | . 189 1192 1276 134 633 85 116 210 329 237 149 135 . 1467 1712 Cannons . | . . . . . . . . . . . . . . . . Explosions 5781 | . . 24 366 1072 . . . . 167 99 35 . . 1291 2727 Melee 1284 | . . 225 . . . . . . 859 200 . . . . . Ramming 70 | . . 6 6 5 27 . . . 26 . . . . . . Kinetic 3519 | . 68 936 495 . 372 . 39 84 . 157 76 135 . . 1157 Thermal 2655 | . . 93 920 134 261 85 52 84 207 99 . . . 399 321 Explosive 4896 | . . . . 850 . . . . 79 . 35 . . 1205 2727 Electromagnetic 1444 | . 121 187 227 222 . . 25 42 210 80 73 . . 23 234 Impact 225 | . . 225 . . . . . . . . . . . . . Slashing 1977 | . . . . . . . . . 859 200 . . . 412 506 Piercing . | . . . . . . . . . . . . . . . . Entropic 1131 | . . . . . . . . . . . . . . 1131 . Highest Corruption 19 | . . 3 . 5 . 2 2 1 12 5 5 . . . 19 Average Corruption 5 | . . 3 . 1 . 2 2 1 9 4 4 . . . 8 Corruption Purged 5 | . . . . . . . . . . . 5 . . . . Corruption Blocked . | . . . . . . . . . . . . . . . . Effects 39 | . . 1 . 3 . 2 . . 7 4 2 . . . 20 Message Errors 9 | . . . . 1 . . . . 3 1 1 . . . 3 Matter Fused 9 | . . 1 . . . 1 . . . . . . . . 7 Heat Flow Errors 6 | . . . . . . . . . 2 1 . . . . 3 Energy Discharges 3 | . . . . . . 1 . . 1 . . . . . 1 Parts Rejected 2 | . . . . . . . . . . . . . . . 2 Data Loss (minor) 3 | . . . . 1 . . . . 1 1 . . . . . Misdirections 2 | . . . . . . . . . . . . . . . 2 Weapon Failures 5 | . . . . 1 . . . . . 1 1 . . . 2 Overload Shots . | . . . . . . . . . . . . . . . . Overflow Damage 725 | . . 93 1 9 . . . . 119 169 . . . 158 176 Projectiles 34 | . . . . . . . . . . . . . . 3 31 Explosions 503 | . . . 1 9 . . . . 24 169 . . . 155 145 Melee 188 | . . 93 . . . . . . 95 . . . . . . Knockbacks . | . . . . . . . . . . . . . . . . Impact . | . . . . . . . . . . . . . . . . Kinetic . | . . . . . . . . . . . . . . . . Secondary . | . . . . . . . . . . . . . . . . Self-Inflicted Damage 889 | . . . 83 47 12 . . . 259 392 40 . . 56 . Shots 19 | . . . 3 5 . . . . 4 5 1 . . 1 . Rammed 8 | . . . . 1 3 . . . 4 . . . . . . Targets Rammed 15 | . . 3 3 1 4 . . . 4 . . . . . . Kicked 7 | . . 3 3 . 1 . . . . . . . . . . Crushed . | . . . . . . . . . . . . . . . . Highest Temperature 620 | . 123 112 434 125 620 . 90 153 363 268 138 . . 200 531 Average Temperature 118 | . 46 35 138 56 242 . 53 70 110 91 82 . . 83 158 Received Heat Transfer 1727 | . 69 168 225 297 285 . . . 126 . . 66 . 105 386 Effects 23 | . . . 2 . 16 . . . . . . . . . 5 Shutdowns 4 | . . . 1 . 3 . . . . . . . . . . Interference 8 | . . . . . 5 . . . . . . . . . 3 Damage (minor) 4 | . . . . . 3 . . . . . . . . . 1 Damage (major) 6 | . . . 1 . 4 . . . . . . . . . 1 Damage (core) 1 | . . . . . 1 . . . . . . . . . . Siege Activations . | . . . . . . . . . . . . . . . . Robots Corrupted 1 | . . . . . . . . . 1 . . . . . . Combat Hostiles . | . . . . . . . . . . . . . . . . Parts Fried 8 | . 1 3 . 1 . . . . 1 1 . . . . 1 Impact Corruptions 4 | . . 4 . . . . . . . . . . . . . Robots Melted 1 | . . . . 1 . . . . . . . . . . . Combat Hostiles 1 | . . . . 1 . . . . . . . . . . . Parts Melted 12 | . . . 3 3 . . . 1 . . . . . 1 4 Heat Transferred 6067 | . . 148 2222 296 851 222 185 185 359 50 . . . 901 648 Parts Sabotaged . | . . . . . . . . . . . . . . . . Parts Stolen . | . . . . . . . . . . . . . . . . Parts Stripped . | . . . . . . . . . . . . . . . . Power Chain Reactions 3 | . . 1 1 . . . . . 1 . . . . . . Missiles Intercepted . | . . . . . . . . . . . . . . . . Alert | -11 -10 -9 -8 -8 -7 -7 -7 -6 -5 -4 -4 -4 -4 -3 -3 ------- Run | Yrd Mat Mat Mat Sto Fac Low Low Fac Fac Fac Upp Upp War Pro Res Peak Influence 1036 | . 80 403 534 1036 561 . . 194 439 249 . . . . 679 Initial 471 | . . 33 127 225 471 . . 78 94 83 . . . . 47 Average 263 | . 33 234 335 612 488 . . 107 207 177 . . . . 217 Maximum Alert Level 3 | . . 2 2 3 2 . . . 2 1 . . . . 2 Low Security (%) 33 | . 100 31 11 . . . . 100 30 32 . . . . 47 Level 1 48 | . . 67 53 41 9 . . . 67 67 . . . . 47 Level 2 14 | . . . 34 15 90 . . . 2 . . . . . 5 Level 3 2 | . . . . 42 . . . . . . . . . . . Level 4 . | . . . . . . . . . . . . . . . . Level 5 . | . . . . . . . . . . . . . . . . High Security . | . . . . . . . . . . . . . . . . Max Security . | . . . . . . . . . . . . . . . . Squads Dispatched 19 | . . 3 3 1 1 . . 1 1 4 . . . . 5 Investigation 9 | . . 2 2 1 . . . 1 . 2 . . . . 1 Extermination 5 | . . . . . . . . . 1 1 . . . . 3 Reinforcement 5 | . . 1 1 . 1 . . . . 1 . . . . 1 Assault . | . . . . . . . . . . . . . . . . Garrison . | . . . . . . . . . . . . . . . . Intercept . | . . . . . . . . . . . . . . . . Searches Triggered 2 | . . . . . . . . . 1 . . . . . 1 Construction Impeded . | . . . . . . . . . . . . . . . . Haulers Reinforced 1 | . . . . . . . . . . . . . . . 1 Active Scanning Responses . | . . . . . . . . . . . . . . . . Cargo Convoy Interrupts . | . . . . . . . . . . . . . . . . Stealth | -11 -10 -9 -8 -8 -7 -7 -7 -6 -5 -4 -4 -4 -4 -3 -3 --------- Run | Yrd Mat Mat Mat Sto Fac Low Low Fac Fac Fac Upp Upp War Pro Res Distress Signals 10 | . . 1 2 2 1 . . . 1 . . . 2 . 1 Communications Jammed 6 | . . . . . 6 . . . . . . . . . . Distress Signals 6 | . . . . . 6 . . . . . . . . . . Times Spotted 169 | . 3 20 26 26 19 1 2 5 12 5 2 7 . 12 29 Peak Tracking Total 12 | . 2 4 6 12 8 1 2 4 7 2 2 4 . 4 6 Tactical Retreats 18 | . . . . 6 2 . . 2 2 1 1 2 . . 2 Traps | -11 -10 -9 -8 -8 -7 -7 -7 -6 -5 -4 -4 -4 -4 -3 -3 ------- Run | Yrd Mat Mat Mat Sto Fac Low Low Fac Fac Fac Upp Upp War Pro Res Traps Triggered 6 | . . . . 2 1 . . 1 1 1 . . . . . Indirectly . | . . . . . . . . . . . . . . . . Trap Hack Attempts 34 | . . . . . . . . . . 34 . . . . . Triggered . | . . . . . . . . . . . . . . . . Disarmed . | . . . . . . . . . . . . . . . . Reprogrammed 11 | . . . 4 . . . . . . 7 . . . . . Reused . | . . . . . . . . . . . . . . . . Traps Extracted . | . . . . . . . . . . . . . . . . Installed . | . . . . . . . . . . . . . . . . Triggered 14 | . . . . . . . . . . . . 1 13 . . Machines | -11 -10 -9 -8 -8 -7 -7 -7 -6 -5 -4 -4 -4 -4 -3 -3 ---------- Run | Yrd Mat Mat Mat Sto Fac Low Low Fac Fac Fac Upp Upp War Pro Res Machines Disabled 23 | . . 1 2 5 . . . . 4 6 . . . 1 4 Max in Single Turn 6 | . . 1 1 1 . . . . 2 6 . . . 1 1 Garrison Access 2 | . . . . . . . . . 2 . . . . . . Machines Repaired . | . . . . . . . . . . . . . . . . Machines Dismantled . | . . . . . . . . . . . . . . . . Machines Sabotaged . | . . . . . . . . . . . . . . . . Overloaded Fab Kills . | . . . . . . . . . . . . . . . . Hacking | -11 -10 -9 -8 -8 -7 -7 -7 -6 -5 -4 -4 -4 -4 -3 -3 --------- Run | Yrd Mat Mat Mat Sto Fac Low Low Fac Fac Fac Upp Upp War Pro Res Machines Accessed 43 | . 2 3 6 3 1 . 1 4 10 5 . . 4 1 3 Terminals 23 | . 1 1 5 3 . . 1 2 4 3 . . . . 3 Fabricators 4 | . . . . . . . . 1 2 1 . . . . . Repair Stations 5 | . 1 1 . . 1 . . . 1 1 . . . . . Recycling Units 4 | . . 1 1 . . . . 1 1 . . . . . . Scanalyzers . | . . . . . . . . . . . . . . . . Garrison Access 2 | . . . . . . . . . 2 . . . . . . Total Hacks 156 | . 7 13 29 10 2 . 1 10 39 22 . . 10 1 12 Successful 79 | . 3 10 15 3 2 . 1 4 17 7 . . 10 1 6 Failed 77 | . 4 3 14 7 . . . 6 22 15 . . . . 6 Catastrophic 12 | . 2 . 1 1 . . . . 4 2 . . . . 2 Database Lockouts . | . . . . . . . . . . . . . . . . Manual 50 | . 4 1 21 . . . . 4 8 9 . . . . 3 Terminals 96 | . 4 6 27 10 . . 1 5 18 13 . . . . 12 Fabricators 13 | . . . . . . . . 2 6 5 . . . . . Repair Stations 19 | . 3 4 . . 2 . . . 6 4 . . . . . Recycling Units 12 | . . 3 2 . . . . 3 4 . . . . . . Scanalyzers . | . . . . . . . . . . . . . . . . Garrison Access 5 | . . . . . . . . . 5 . . . . . . Terminal Hacks 37 | . . 2 9 3 . . 1 . 5 3 . . 10 1 3 Record 4 | . . . . . . . 1 . . . . . 2 1 . Prototype ID Bank 13 | . . . 5 . . . . . 1 . . . 6 . 1 Open Door 5 | . . . . 3 . . . . . . . . 2 . . Branch Access Points 2 | . . 1 1 . . . . . . . . . . . . Alert Level 4 | . . 1 . . . . . . 1 1 . . . . 1 Locate Traps 2 | . . . 1 . . . . . 1 . . . . . . Reprogram Traps 1 | . . . 1 . . . . . . . . . . . . Patrol Status 1 | . . . . . . . . . . 1 . . . . . Garrison Status 1 | . . . . . . . . . 1 . . . . . . Recall Investigation 1 | . . . . . . . . . . 1 . . . . . Hauler Manifests 1 | . . . . . . . . . 1 . . . . . . Zone Layout 2 | . . . 1 . . . . . . . . . . . 1 Fabricator Hacks 2 | . . . . . . . . 1 . 1 . . . . . Network Status 2 | . . . . . . . . 1 . 1 . . . . . Repair Station Hacks 12 | . 2 4 . . 2 . . . 3 1 . . . . . Scan Component 7 | . 1 2 . . 1 . . . 2 1 . . . . . Repair 5 | . 1 2 . . 1 . . . 1 . . . . . . Recycling Unit Hacks 9 | . . 3 1 . . . . 2 3 . . . . . . Process 3 | . . 1 . . . . . 1 1 . . . . . . Report Inventory 4 | . . 1 1 . . . . 1 1 . . . . . . Retrieve Matter 2 | . . 1 . . . . . . 1 . . . . . . Scanalyzer . | . . . . . . . . . . . . . . . . Garrison Access Hacks 2 | . . . . . . . . . 2 . . . . . . Seal Access 2 | . . . . . . . . . 2 . . . . . . Unauthorized Hacks 17 | . 1 1 5 . . . . 1 4 2 . . . . 3 Terminals 16 | . 1 1 4 . . . . 1 4 2 . . . . 3 Track 1 | . . . . . . . . . 1 . . . . . . Assimilate 1 | . . . 1 . . . . . . . . . . . . Botnet 13 | . 1 1 2 . . . . 1 3 2 . . . . 3 Search 1 | . . . 1 . . . . . . . . . . . . Fabricators . | . . . . . . . . . . . . . . . . Repair Stations . | . . . . . . . . . . . . . . . . Recycling Units 1 | . . . 1 . . . . . . . . . . . . Tunnel 1 | . . . 1 . . . . . . . . . . . . Scanalyzers . | . . . . . . . . . . . . . . . . Garrison Access . | . . . . . . . . . . . . . . . . Data Cores Recovered 2 | . . . . . . . . 1 . 1 . . . . . Used 2 | . . . . . . . . 1 . 1 . . . . . Hacking Detections 28 | . 1 2 5 2 . . . 4 6 5 . . . . 3 Full Trace Events 7 | . . 2 . 1 . . . 1 . 2 . . . . 1 Feedback Events . | . . . . . . . . . . . . . . . . Feedback Blocked . | . . . . . . . . . . . . . . . . Robot Schematics Acquired . | . . . . . . . . . . . . . . . . Robots Built . | . . . . . . . . . . . . . . . . Authchips . | . . . . . . . . . . . . . . . . Time . | . . . . . . . . . . . . . . . . Total Robot Build Rating . | . . . . . . . . . . . . . . . . Part Schematics Acquired . | . . . . . . . . . . . . . . . . Parts Built . | . . . . . . . . . . . . . . . . Authchips . | . . . . . . . . . . . . . . . . Time . | . . . . . . . . . . . . . . . . Total Part Build Rating . | . . . . . . . . . . . . . . . . Parts Repaired 5 | . 1 2 . . 1 . . . 1 . . . . . . Time 169 | . 26 77 . . 38 . . . 28 . . . . . . Parts Recycled . | . . . . . . . . . . . . . . . . Recycled Matter 260 | . . 237 . . . . . 1 22 . . . . . . Retrieved Matter 285 | . . 263 . . . . . . 22 . . . . . . Retrieved Components . | . . . . . . . . . . . . . . . . Parts Scanalyzed . | . . . . . . . . . . . . . . . . Part Schematics Acquired . | . . . . . . . . . . . . . . . . Parts Damaged . | . . . . . . . . . . . . . . . . Bothacking | -11 -10 -9 -8 -8 -7 -7 -7 -6 -5 -4 -4 -4 -4 -3 -3 ------------ Run | Yrd Mat Mat Mat Sto Fac Low Low Fac Fac Fac Upp Upp War Pro Res Used RIF Installer . | . . . . . . . . . . . . . . . . Robots Hacked . | . . . . . . . . . . . . . . . . Non-combat . | . . . . . . . . . . . . . . . . Combat . | . . . . . . . . . . . . . . . . Robot Hacks Applied . | . . . . . . . . . . . . . . . . Relay Couplers Released 1 | . . . . . . . . . 1 . . . . . . Machine Destruction 1 | . . . . . . . . . 1 . . . . . . Fabnet Peak Effective % . | . . . . . . . . . . . . . . . . Robots Rewired . | . . . . . . . . . . . . . . . . Allies Hacked . | . . . . . . . . . . . . . . . . Hacks Repelled . | . . . . . . . . . . . . . . . . Allies | -11 -10 -9 -8 -8 -7 -7 -7 -6 -5 -4 -4 -4 -4 -3 -3 -------- Run | Yrd Mat Mat Mat Sto Fac Low Low Fac Fac Fac Upp Upp War Pro Res Total Allies 1 | . . . . 1 . . . . . . . . . . . Largest Group 1 | . . . . 1 1 . . . . . . . . . . Highest-Rated Group 100 | . . . . 100 95 . . . . . . . . . . Highest-Rated Ally 100 | . . . . 100 95 . . . . . . . . . . Total Orders 1 | . . . . . . . . . . 1 . . . . . EXPLORE 1 | . . . . . . . . . . 1 . . . . . Ally Attacks 18 | . . . . 18 . . . . . . . . . . . Total Damage 694 | . . . . 694 . . . . . . . . . . . Kills 10 | . . . . 10 . . . . . . . . . . . Allies Corrupted . | . . . . . . . . . . . . . . . . Allies Melted . | . . . . . . . . . . . . . . . . Intel | -11 -10 -9 -8 -8 -7 -7 -7 -6 -5 -4 -4 -4 -4 -3 -3 ------- Run | Yrd Mat Mat Mat Sto Fac Low Low Fac Fac Fac Upp Upp War Pro Res Robot Analysis Total . | . . . . . . . . . . . . . . . . Derelict Logs Recovered 3 | . . . . . . . . . . . 1 2 . . . Drone Launches 2 | . . . . . . . . . . 2 . . . . . Drone Recoveries . | . . . . . . . . . . . . . . . . Exploration | -11 -10 -9 -8 -8 -7 -7 -7 -6 -5 -4 -4 -4 -4 -3 -3 ------------- Run | Yrd Mat Mat Mat Sto Fac Low Low Fac Fac Fac Upp Upp War Pro Res Turns Passed 7263 | . 292 853 745 301 444 500 81 187 876 474 261 126 498 578 1047 Spaces Moved 6224 | 1 169 431 299 272 260 377 55 243 880 621 400 167 673 602 774 Core 615 | . . . . . 127 228 . . 28 . . 44 122 . 66 Treads 74 | . . . . 29 45 . . . . . . . . . . Legs 1441 | 1 169 431 299 14 88 149 55 13 7 . . . . . 215 Wheels 75 | . . . . . . . . . . . . . . . 75 Hover 3541 | . . . . . . . . 230 845 513 400 123 551 602 277 Flight 478 | . . . . 229 . . . . . 108 . . . . 141 Fastest Speed 36 | 120 120 120 120 37 50 50 130 60 36 45 55 50 50 65 40 Average Speed 83 | 120 120 120 185 65 115 82 130 63 60 55 59 62 63 72 103 Slowest Speed 320 | 120 120 190 190 320 240 140 130 130 120 110 61 70 152 134 250 Overloaded Moves . | . . . . . . . . . . . . . . . . Propulsion Burnouts . | . . . . . . . . . . . . . . . . Robots Hopped 8 | . . . . 8 . . . . . . . . . . . Cave-ins Triggered . | . . . . . . . . . . . . . . . . Exploration Rate (%) 34 | 2 34 31 21 54 9 47 11 7 25 12 66 42 87 90 16 Regions Visited 15 Branch Regions 7 Pre-discovered Areas 1 | . . . 1 . . . . . . . . . . . . Known Exits Taken 12 | . 1 1 1 1 1 1 1 1 1 1 1 1 . . . Unknown Exits Taken 3 | 1 . . . . . . . . . . . . 1 1 . Scrap Searched 6 | . . . . . . 2 . . . . 1 1 . 2 . Spaces Dug 2 | . . . . . . . . . . . 2 . . . . Terrain Destroyed 386 | . . 6 6 52 . . . . 104 27 22 2 . 76 91 Melee . | . . . . . . . . . . . . . . . . Projectile 24 | . . . . . . . . . . 1 3 2 . 11 7 AOE 362 | . . 6 6 52 . . . . 104 26 19 . . 65 84 Terrain Rammed . | . . . . . . . . . . . . . . . . Walls Destroyed . | . . . . . . . . . . . . . . . . Machines Disabled . | . . . . . . . . . . . . . . . . Actions | -11 -10 -9 -8 -8 -7 -7 -7 -6 -5 -4 -4 -4 -4 -3 -3 --------- Run | Yrd Mat Mat Mat Sto Fac Low Low Fac Fac Fac Upp Upp War Pro Res Total 7658 | . 227 639 395 368 342 558 58 266 1158 713 410 179 739 686 920 Wait 585 | . 27 88 11 41 37 166 . . 157 3 . . 20 19 16 Move 6194 | . 168 430 298 256 259 376 54 242 879 620 399 166 672 601 774 Hop 7 | . . . . 7 . . . . . . . . . . . Pick Up 56 | . 6 11 6 5 5 3 1 4 7 1 1 . 3 1 2 Fast Attach 151 | . 2 12 8 13 6 5 . 3 26 20 1 2 19 8 26 Attach 50 | . . 1 4 7 3 3 . 2 12 1 1 . 2 5 9 Detach 36 | . . . 2 5 . . . 2 7 3 1 . 2 6 8 Swap 41 | . 1 9 10 2 . 1 . 2 3 7 . . 3 . 3 Drop 126 | . 5 23 15 11 4 . . 6 20 5 . 2 18 7 10 Fire 327 | . 18 57 38 20 24 4 3 5 19 14 7 9 . 38 71 Melee 35 | . . 5 . . . . . . 24 5 . . . 1 . Ram 9 | . . . . 1 3 . . . 4 . . . . . 1 Kick 7 | . . 3 3 . 1 . . . . . . . . . . Crush . | . . . . . . . . . . . . . . . . Escape Stasis . | . . . . . . . . . . . . . . . . Rewire . | . . . . . . . . . . . . . . . . Trap 34 | . . . . . . . . . . 34 . . . . . Miscellaneous . | . . . . . . . . . . . . . . . . Route ------- -11/Scrapyard -10/Materials -9/Materials (discovered 2 exits: *Mat / Min) -8/Materials (discovered 3 exits: Fac / *Sto x2) -8/Storage -7/Factory -7/Lower Caves -7/Lower Caves -6/Factory -5/Factory -4/Factory -4/Upper Caves -4/Upper Caves (discovered 2 exits: *Res / *War) -4/Warlord -3/Proximity Caves -3/Research History --------- Turn | Location | Event 1 | -11/Scrapyard | Discovered new exit (range 0) 1 | -11/Scrapyard | Entered Materials 272 | -10/Materials | Repaired EM Pulse Gun 285 | -10/Materials | Discovered new exit (range 7) 292 | -10/Materials | Identified exit to Materials 293 | -10/Materials | Entered another Materials area 293 | -9/Materials | Evolved 2 slots: Utility x1, Weapon x1 483 | -9/Materials | Repaired EM Pulse Gun 608 | -9/Materials | Identified exit to Mines 888 | -9/Materials | Repaired Imp. Assault Rifle 1095 | -9/Materials | Discovered new exit (range 20) 1145 | -9/Materials | Identified exit to Materials 1146 | -9/Materials | Entered another Materials area 1146 | -8/Materials | Evolved 2 slots: Utility x1, Weapon x1 1627 | -8/Materials | Identified exit to Storage 1825 | -8/Materials | Discovered new exit (range 14) 1828 | -8/Materials | Build established: Tank 1891 | -8/Materials | Entered Storage 1987 | -8/Storage | Core integrity fell below 50% 1998 | -8/Storage | Core integrity fell below 20% 2019 | -8/Storage | Found Prototype Launcher 2019 | -8/Storage | Identified Gui. Missile Launcher 2044 | -8/Storage | Met 01-MTF 2051 | -8/Storage | Discovered new exit (range 9) 2064 | -8/Storage | Lost 9 parts (1p3n2u3w) 2190 | -8/Storage | Identified exit to Factory 2192 | -8/Storage | Entered Factory 2192 | -7/Factory | Accompanied by 1 ally (01-MTF) 2192 | -7/Factory | Evolved 2 slots: Propulsion x1, Utility x1 2197 | -7/Factory | 01-MTF left 2437 | -7/Factory | Build established: Scavenger-Skirmisher 2492 | -7/Factory | Repaired Imp. Terrain Scanner 2570 | -7/Factory | Core integrity fell below 50% 2595 | -7/Factory | Core integrity fell below 20% 2607 | -7/Factory | Lost 12 parts (1p3n3u5w) 2633 | -7/Factory | Discovered new exit (range 4) 2635 | -7/Factory | Identified exit to Lower Caves 2636 | -7/Factory | Entered Lower Caves 3120 | -7/Lower Caves | Discovered new exit (range 10) 3135 | -7/Lower Caves | Identified exit to Lower Caves 3136 | -7/Lower Caves | Entered another Lower Caves area 3178 | -7/Lower Caves | Discovered new exit (range 10) 3215 | -7/Lower Caves | Identified exit to Factory 3217 | -7/Lower Caves | Entered Factory 3217 | -6/Factory | Evolved 2 slots: Utility x1, Weapon x1 3377 | -6/Factory | Discovered new exit (range 20) 3387 | -6/Factory | Identified exit to Factory 3404 | -6/Factory | Entered another Factory area 3404 | -5/Factory | Evolved 2 slots: Propulsion x1, Utility x1 3704 | -5/Factory | Search patrols dispatched 3720 | -5/Factory | Build established: Hacker-Scout 3722 | -5/Factory | Spotted B-75 Beast 3838 | -5/Factory | Repaired Tesla Rifle 3948 | -5/Factory | Discovered new exit (range 12) 3960 | -5/Factory | Identified exit to Factory 4126 | -5/Factory | Core integrity fell below 50% 4149 | -5/Factory | System corruption reached 10% 4161 | -5/Factory | Core integrity fell below 20% 4198 | -5/Factory | Lost 13 parts (1p4n4u4w) 4280 | -5/Factory | Entered another Factory area 4280 | -4/Factory | Evolved 2 slots: Utility x1, Weapon x1 4392 | -4/Factory | Lost 5 parts (2n2u1w) 4689 | -4/Factory | Lost 4 parts (2n1u1w) 4722 | -4/Factory | Discovered new exit (range 13) 4741 | -4/Factory | Identified exit to Upper Caves 4754 | -4/Factory | Entered Upper Caves 4863 | -4/Upper Caves | Lost 4 parts (1n1u2w) 4932 | -4/Upper Caves | Encountered a Warlord checkpoint 4997 | -4/Upper Caves | Discovered new exit (range 12) 5003 | -4/Upper Caves | Identified exit to Upper Caves 5015 | -4/Upper Caves | Entered another Upper Caves area 5015 | -4/Upper Caves | Discovered new exit (range 7) 5031 | -4/Upper Caves | Identified exit to Warlord 5037 | -4/Upper Caves | Spotted B-86 Titan 5049 | -4/Upper Caves | Encountered a Warlord checkpoint 5087 | -4/Upper Caves | Learned Research emergency access door positions 5117 | -4/Upper Caves | Core integrity fell below 50% 5137 | -4/Upper Caves | Build established: Mutant 5141 | -4/Upper Caves | Entered Warlord 5225 | -4/Warlord | Found Prototype Special Weapon 5225 | -4/Warlord | Identified RU-N14's Throwing Claymores v3 5229 | -4/Warlord | Found RU-N14's Throwing Claymores v3 5232 | -4/Warlord | Found RU-N14's Throwing Claymores v3 5247 | -4/Warlord | Found RU-N14's Throwing Claymores v3 5277 | -4/Warlord | Found RU-N14's Throwing Claymores v3 5305 | -4/Warlord | Met Warlord 5330 | -4/Warlord | Warlord's base attacked by MAIN.C 5478 | -4/Warlord | Found Prototype Energy Gun 5478 | -4/Warlord | Identified Vortex Shotgun 5482 | -4/Warlord | Found Vortex Shotgun 5617 | -4/Warlord | Build established: Hacker-Gunner 5621 | -4/Warlord | Opened side exit 5634 | -4/Warlord | Discovered new exit (range 10) 5639 | -4/Warlord | Entered Proximity Caves 5810 | -3/Proximity Caves | Spotted B-86 Titan 5908 | -3/Proximity Caves | Destroyed B-86 Titan 6017 | -3/Proximity Caves | Found Alien Artifact 6017 | -3/Proximity Caves | Identified Dimensional Node Initializer 6017 | -3/Proximity Caves | Initialized slip node 6153 | -3/Proximity Caves | Build established: Hacker-Mutant 6178 | -3/Proximity Caves | Attracted the attention of an 0b10 checkpoint 6197 | -3/Proximity Caves | Discovered new exit (range 11) 6217 | -3/Proximity Caves | Entered Research 6217 | -3/Research | Evolved 2 slots: Propulsion x1, Weapon x1 6541 | -3/Research | Lost 3 parts (1p2w) 6573 | -3/Research | Spotted B-86 Titan 6748 | -3/Research | Core integrity fell below 50% 7023 | -3/Research | System corruption reached 10% 7044 | -3/Research | Lost 3 parts (1n2w) 7157 | -3/Research | Core integrity fell below 20% 7187 | -3/Research | Lost 3 parts (1n2w) 7248 | -3/Research | Search patrols dispatched 7264 | -3/Research | Destroyed by P-80 Master with Gamma Rifle Last Messages --------------- 07257_ Destroyed Gamma Rifle. 07257_ K-01 Serf destroyed. 07257_ Destroyed Wheel. 07257_ K-01 Serf destroyed. 07257_ R-10 Processor destroyed. 07257_ U-05 Engineer lays Concrete. 07258_ A-15 Conveyor calls for reinforcements. 07258_ ALERT: Hostile activity reported, dispatching reinforcements to area. 07258_ U-05 Engineer lays Concrete. 07260_ Destroyed Imp. Antigrav System. 07260_ U-05 Engineer lays Concrete. 07260_ Adv. Heat Sink destroyed. 07262_ U-05 Engineer lays Concrete. 07263_ P-80 Master destroyed. 07263_ G-67 Veteran destroyed. 07263_ R-10 Processor destroyed. 07263_ U-05 Engineer lays Concrete. 07263_ Wheel destroyed. 07264_ U-05 Engineer lays Concrete. Map ----- +----------------------------------------------------+ | ?????????????????????????????????????? | | ?????????????????????????????????????? | | ?????????????????????????????????????? | | ?????????????????????????????????????? | | ?????????????????????????????????????? | | ?????????????????????????????????????? | | ?????????????????????????????????????? | | ?????????????????????????????????????? | | ?????????????????????????????????????? | | ?????????????????????????????????????? | | ?????????????????????????????????????? | | ?????????????????????????????????????? | | ?????????????????????????????????????? | | ?????????????????????????????????????? | | ?????????????????????????????????????? | | ?????????????????????????????????????? | | ?????????????????????????????????????? | | ?????????????????????????????????????? | | ?????????????????????????????????????? | | ?????????????????????????????????????? | | ?????????????????????????????????"???? | | ????????????????????????????? "???? | | ??????????????????????????"" #???? | | ???????????????????????? #???? | | ???????#+##+########## ##??? | | ???????# @ u R ? | | ???????# p %[ ? | | ???????# p A% %= ? | | ???????# %R R R = ?? | | ???????####+######+###### #####???? | | ???????# ! #?? ???????##???????? | | ???????# #??? ???????????????? | | ???????# #???? ??????????????? | | ???????# #????? #????????????? | | ???????# """#?????? #????????????? | | ???????# T"#???????#????????????? | | ???????# """#????????????????????? | | ???????# +????????????????????? | | ???????# #????????????????????? | | ???????#+########????????????????????? | | ???????# #???????????????????????????? | | ???????# #???????###############?????? | | ???????# ######### """T""" #?????? | | #??????# # ] # #?????? | | # ???## # # #?????? | | # ?# + # #?????? | | # # # # ! #??#### | | ??? + + # #??# | | ??????# #""###"########+########## | | ####### " | +----------------------------------------------------+ Best States ------------- Heat Dissipation 65 Energy Generation 21 Energy Capacity 350 Matter Stores 300 Matter Capacity 300 Sight Range 22 Robot Scan Range 15 Terrain Scan Range 20 Terrain Scan Density 310 Jamming Range 12 Power Amplification 40 Armor Coverage 225 Resistance: TH 30 Utility Shielding 33 Weapon Shielding 66 Evasion (%) 62 Targeting Accuracy 8 Melee Accuracy 8 Target Analysis 12 Recoil Reduction 1 Energy Filtering 30 Particle Charging 15 Offensive Hacking 10 Defensive Hacking 35 Item Schematics ----------------- None Robot Schematics ------------------ None Fabricated ------------ Nothing Alien Tech Used ----------------- Dimensional Node Initializer Achievements -------------- None Challenges ------------ None Game ------ Seed PhaseDecoderThermoblaster Manual? 0 Play Time 01:05:25 Cumulative 653.6 hours Start 2024.02.12 @ 16:29:49 End 2024.02.12 @ 17:30:58 Sessions 1 Manual Loads 0 Difficulty Rogue Special Mode None Game No. 649 Rogue 376 Adventurer 123 Explorer 150 Win Type - Total 25 Types 19/0/4/1/0/0/0/1/0 Lore% 80 Gallery% 91 Achievement% 76 Wizard Run 0 Options --------- ASCII 0 Keyboard 1 Movement Numpad Keybinds 0 Fullscreen 2 Font 18/X11Bold Map View 76x50 Zoom Use 0% Tactical HUD 1 Map Filters NONE Filters NONE Steam 1 RUN: 747a501b-1859-4741-aae3-6d173bf3e4e7